{"text_format":"2","workbook":"xlsx","n_sheets":4,"sheets":["Összesen","Vízellátás, csatornázás szerelé","Hűtés szerelés","Légtechnika szerelés"],"not_rendered":{"charts":0,"images":0,"macros":0,"external_links":0,"defined_names":0,"comments":0,"pivot_tables":0},"unopened":[],"bounds":{"document_bytes":16777216,"sheet_cells":100000,"run_cost":"one","rows_first":2000,"rows_last":500,"rows_between":2000,"halvings":0,"cell_chars":16384,"cell_head_chars":4096},"cells_cut":0,"cells_raw":0,"read":"whole","date_system":"1900"}

{"sheet":"Összesen","index":0,"n_rows":8,"n_cols":3,"rows_kept":8,"cut":false,"hidden":false,"merged":[]}
["Munkanem","Munkadíj","Anyagköltség"]
["Vízellátás, csatornázás szerelés",{"$f":"'Vízellátás, csatornázás szerelé'!H79","v":0},{"$f":"'Vízellátás, csatornázás szerelé'!I79","v":0}]
["Hűtés szerelés",{"$f":"'Hűtés szerelés'!H23","v":0},{"$f":"'Hűtés szerelés'!I23","v":0}]
["Légtechnika szerelés",{"$f":"'Légtechnika szerelés'!H30","v":0},{"$f":"'Légtechnika szerelés'!I30","v":0}]
[]
["Összesen",{"$f":"SUM(B2:B4)","v":0},{"$f":"SUM(C2:C4)","v":0}]
[]
["Mind összesen",null,{"$f":"(B6 + C6)","v":0}]

{"sheet":"Vízellátás, csatornázás szerelé","index":1,"n_rows":79,"n_cols":9,"rows_kept":79,"cut":false,"hidden":false,"merged":[]}
["No.","Azonosító","Mennyiség","Egys.","Szöveg","Óradij","Anyagár","xÓradij","xAnyagár"]
[{"$nulls":4},"Vízellátás, csatornázás szerelés"]
[1,"81-000-101-001",1,"db","BONTÁSI MUNKÁK Vízvezeték elzárás és nyitás kivitelezési munkák előtt és után, csőhálózat ürítésével",0,0,{"$f":"(C3*F3)","v":0},{"$f":"(C3*G3)","v":0}]
[2,"82-000-111",3,"db","Menetes szerelvény leszerelése 2 \" átmérőig",0,0,0,0]
[3,"82-000-211",2,"db","Falikút, mosdó, kézmosó leszerelése ",0,0,0,0]
[4,"82-000-213",4,"db","WC csésze leszerelése",0,0,0,0]
[5,"82-000-215",4,"db","Öblítőtartály leszerelése",0,0,0,0]
[6,"82-000-218",4,"db","Zuhanytálca leszerelése ",0,0,0,0]
[7,"82-000-131",20,"db","Szelep, csaptelep, bekötőcső, zsírfogó, bűzelzáró, és egyéb szerelvény leszerelése ",0,0,0,0]
[8,"82-000-131",1,"db","Fali tűzcsap leszerelése",0,0,0,0]
[9,"81-000-241",3.5,"m","PVC csővezeték bontása DN  25- 50 ",0,0,0,0]
[10,"81-000-242",10,"m","DN  65-100",0,0,0,0]
[11,"81-000-201",29,"m","Szabadon, vagy padlócsatornába szerelt horganyzott, vagy fekete acélcső bontása,tartószerkezetekről 2\"-ig, vagy  DN  50-  ig",0,0,0,0]
[12,"82-000-911-000-72-00001",1,"alk","A leszerelt, bontott, darabolt vasanyag kihordása a depóniába",0,0,0,0]
[13,"82-000-921-001-72-72111",1,"db","Bontott vasanyag elszállítása, fel és lerakással, 25 km-es körzetben 2,8 tonnáig",0,0,0,0]
[14,"81-615-116-042-61-21131",1,"db","SZERELÉSI MUNKÁK Gömbcsap, biztonsági kontúrral, vörösöntvény, csővezetékbe szerelve, PN10, átm. 42 mm",0,0,0,0]
[15,"82-211-912-113-01-13102",0,"db","Szaniter kerámia  mosdó, hideg-melegvízre, műanyag faliékekkel, csavarokkal, 1 db MOFÉM leeresztőszelep nélküli csapteleppel 2 db falikoronggal, 2 db MOFÉM sarokszeleppel, nyomó összekötőcsővel, 1 db MOFÉM leeresztőszelepes bűzelzáróval, felszerelve, V&B ALFÖLDI-Saval típusú, bűzelzáró takaróelemmel, egykaros mosdócsapteleppel 60x49 cm  fehér 702040 ",0,0,0,0]
[16,"82-213-921-321-01-12331",0,"db","Szaniter kerámia monoblokk WC csésze, padlóra szerelhető kivitelben, a szükséges szerelési tartozékokkal, továbbá 1 db szaniterkerámia monoblokk WC öblítőtartállyal, 1 db falikoronggal, 1 db MOFÉM sarokszeleppel, 1 db FIL-NOX flexibilis vízbekötőcsővel, 1 db WC ülőkével, felszerelve, V&B ALFÖLDI-Saval típusú, tartállyal, tartályszerelvénnyel, mélyöblítésű kivitelben hátsó kifolyású,fehér ",0,0,0,0]
[17,"82-217-111-001-01-17111",0,"db","Zuhanytálca acéllemezből, kívül-belül fehérre tüzzománcozva, a fenékrészen csúszást gátló domborításokkal, a külön tételben kiírt tartozékokkal felszerelve, 800 x 800 x 105 mm ",0,0,0,0]
[18,"82-251-201-001-20-33631",0,"db","Egykaros kádtöltő- és zuhanycsap, NA 10, teli fogantyúval, névleges vízmennyiség: BA osztály, zuhanygarnitúra nélkül, falra felszerelve, krómozott ",0,0,0,0]
[19,"82-251-922-001-20-17801",0,"db","Kézizuhany szett, NA 15, felszerelve, ",0,0,0,0]
[20,"82-202-111-001-01-10511",0,"db","Falikút acéllemezből, kívül-belül fehérre tűzzománcozva, egy vagy két csaplyukkal, felszerelve, rövid hátfal ",0,0,0,0]
[21,"82-252-202-001-24-12631",0,"db","Kifolyószelep, sárgarézből, krómozott kivitelben, tömlővéggel, felszerelve, MOFÉM típusú, 1/2\" 162-0001-00 ",0,0,0,0]
[22,"82-212-311-001-55-52122",0,"db","Egymedencés nagykonyhai és ipari mosogató, 650x700x850 mm, lábazattal, szifonnal, leeresztő szeleppel, 500x600x300 mm-es medencével, felszerelve, B&K BKH6810441 típusú ",0,0,0,0]
[23,"82-251-011-001-24-11551",0,"db","Mosogatócsaptelep, álló, sárgarézből, krómozott kivitelben, keramikus vezérlőegységgel, flexibilis bekötőcsövekkel, felszerelve, forgatható és kihúzható kifolyócsővel ",0,0,0,0]
[24,"81-614-613-052-61-61611",6,"db","Falikorong vörösöntvényből, felszerelve ",0,0,0,0]
[25,"82-121-202-022-61-71853",1,"db","Csempeszelep vörösöntvényből, felső résszel és kupakkal, kék ",0,0,0,0]
[26,"82-121-202-022-61-71853",1,"db","piros ",0,0,{"$f":"(C28*F28)","v":0},{"$f":"(C28*G28)","v":0}]
[27,"82-252-212-001-24-12701",6,"db","Sarokszelep, sárgarézből, krómozott kivitelben, felszerelve, MOFÉM típusú,",0,0,0,0]
[28,"82-252-322-008-49-45103",6,"db","Vízvezetéki gumicső, vízvezetéki berendezési tárgyak bekötéséhez, rozsdamentes acélháló védőbevonattal, sárgaréz krómozott csatlakozó idomokkal, felszerelve, 50 cm hosszúsággal",0,0,0,0]
[29,"82-281-706-050-41-00253",0,"db","Zuhanytálca szifon, vízszintes DN 40/50x6/4\", elfordítható gömbcsuklós kimenettel, d 86 mm nemesacél fedéllel, felszerelve, HL514/SN jelű, ÖNORM B 2511, EN 329 szerint PP DN40/50x1 1/2\", átm. 52mm lyukhoz HL514/SN ",0,0,0,0]
[30,"82-282-872-110-41-00853",1,"db","Párakivezető készlet műanyagból (PP), felszerelve PP DN 75 HL807",0,0,0,0]
[31,"82-281-126-040-41-00312",1,"db","Mosogép csatlakozó integrált kivitelben, komplett nyomóvíz oldali csatlakozással, króm látható részekkel, felszerelve, HL406E jelű, elektromos csatlakozó aljzattal, PE DN40/50 HL406E",0,0,0,0]
[32,"82-219-202-001-51-10121",0,"db","Kéztörlő adagoló Z és C hajtogatású kéztörlőkhöz, ABS és MABS műanyagból, kulccsal és anélkül is nyitható, padlótól 120 cm magasságra falra felszerelve, TORK Elevation típusú, 500 lap befogadására alkalmas 43,9x33,3x13,6 cm-es, fehér  553000 ",0,0,0,0]
[33,"82-219-201-001-51-10131",0,"db","Toalettpapír adagoló ABS és MABS műanyagból, tartaléktekercs funkcióval, kulccsal és anélkül is nyitható, padlótól 70 cm magasságra falra felszerelve, TORK Elevation Jumbo típusú, 26 cm átm. toalettpapírokhoz 36,0x43,7x13,3 cm-es, fehér  554000 ",0,0,{"$f":"(C35*F35)","v":0},{"$f":"(C35*G35)","v":0}]
[34,"82-219-201-001-51-10211",0,"db","Folyékonyszappan adagoló ABS és MABS műanyagból, 1 literes TORK folyékonyszappan adagolásához, kulccsal és anélkül is nyitható, mosdó vagy pult fölé 20 cm magasságra falra felszerelve, TORK Elevation típusú, 29,1x11,2x11,4 cm-es, fehér  560000 ",0,0,0,0]
[35,"82-219-202-001-51-10621",0,"db","Hulladékgyűjtő ABS műanyagból, 20 literes űrtartalommal, fedő nélkül, falra felszerelve (padlótól 35 cm-re), TORK típusú, 43,0x32,2x20,5 cm-es, fehér 226100 ",0,0,0,0]
[36,"82-219-202-001-51-10631",0,"db","Mini hulladékgyűjtő ABS műanyagból, falra felszerelve, TORK típusú, 38,0x19,4x16,0 cm-es, fehér   564000 ",0,0,0,0]
[37,"82-219-000-011-22-19391",0,"db","WC kefetartó, kefével, fali rögzítéssel, felszerelve, ",0,0,0,0]
[38,"82-219-201-021-22-19311",0,"db","Fogas, műanyag faliékekkel, csavarokkal, felszerelve, MERKAPT Granada Lonio típusú, GLO 538210 2 ágú ",0,0,0,0]
[39,"82-181-107-008-71-71101",1,"db","Meglévő, korábban leszerelt tűzcsapszekrény, falra újra felszerelve, szakaszoló elzáróval, tömlővel, tömlődobbal, felszerelve,",0,0,0,0]
[40,"81-515-002-016-44-42011",5,"m","Univerzális műanyag csővezetékek, célszerszámmal szerelhető, toldóhüvelyes oldhatatlan kötésekkel, szakaszos nyomáspróbával, szabadon szerelve, csőidomokkal és tartóbilincsekkel, REHAU RAUTITAN stabil típusú, szálban átm. 16,2 x 2,6 mm 130071-005 ",0,0,0,0]
[41,"81-515-003-020-44-42011",9,"m","átm. 20,0 x 2,9 mm 130081-005 ",0,0,0,0]
[42,"81-614-002-118-21-31102",14,"m","Vékonyfalú installációs vörösrézcső préskötéssel hideg-melegvíz nyomóvezetéki, központi fűtési célokra, szakaszos nyomáspróbával, szabadon szerelve, csőidomokkal és csőbilincsekkel együtt átm. 18 mm ",0,0,0,0]
[43,"81-614-003-122-21-31102",6,"m","átm. 22 mm",0,0,0,0]
[44,"81-614-004-129-21-31103",6,"m","átm. 28 mm",0,0,0,0]
[45,"81-614-005-136-21-31103",10,"m","átm. 35 mm",0,0,0,0]
[46,"81-614-006-142-21-31103",11,"m","átm. 42 mm",0,0,0,0]
[47,"81-111-107-007-01-11102",10,"m","Varratnélküli horganyzott acélcső nyomóvezeték, menetes kötésekkel, szakaszos nyomáspróbával. Anyagminőség: DIN 2440/2444 St.37.0 (MSZ 120-2:1982 A 37), szabadon szerelve, tartószerkezetekkel, horganyzott idomokkal 2\"",0,0,0,0]
[48,"81-231-105-040-44-92001",0,"m","Tokos, hangszigetelt  lefolyóvezeték műanyagból, ajakos tömítéssel, szakaszos nyomáspróbával, szabadon szerelve, csőidomokkal és csőtartó bilinccsekkel együtt. Anyaga: RAU-PP ásványi erősítésű. REHAU RAUPIANO-Plus EM típusú, átm. 40 mm 123034-200 ",0,0,0,0]
[49,"81-231-106-050-44-92001",2,"m","átm. 50 mm 120134-200 ",0,0,0,0]
[50,"81-231-107-075-44-92001",9,"m","átm. 75 mm 120214-200 ",0,0,0,0]
[51,"81-231-110-110-44-92001",12,"m","átm.110 mm 120294-200 ",0,0,0,0]
[52,"81-131-102-020-01-01011",8,"m","Műanyag nyomócsővezeték, ragasztott kötésekkel, szakaszos nyomáspróbával. Anyaga: PVC, MSZ 8000-5:1982 PIPELIFE típusú, szabadon, vagy falhoronyban szerelve, tartószerkezettel, műanyag idomokkal átm. 20 x 1,5 mm ",0,0,0,0]
[53,"81-131-103-025-01-01011",13,"m","átm. 25 x 1,5 mm",0,0,0,0]
[54,"48-830-021-018-71-87020",15,"m","Épületgépészeti és ipari csővezeték szigetelése szintetikus gumi, szintetikus kaucsuk, polietilén vagy poliuretán anyagú csőhéjjal, teljes felületen ragasztva, KAIFLEX EF típusú, csőhéj, anyaga: szintetikus kaucsuk, szaniter, légtechnikai, klima és hűtési csővezetékre, 9 mm vastag 18 mm átm. csővezetékre",0,0,0,0]
[55,"48-830-021-022-71-87020",16,"m","22 mm átm. Csővezetékre ",0,0,0,0]
[56,"48-830-021-028-71-87020",16,"m","28 mm átm. Csővezetékre",0,0,0,0]
[57,"48-830-021-035-71-87020",5,"m","35 mm átm. csővezetékre",0,0,0,0]
[58,"48-830-022-042-71-87020",9,"m","42 mm átm. csővezetékre",0,0,0,0]
[59,"48-830-022-054-71-87020",10,"m","54 mm átm. csővezetékre",0,0,0,0]
[60,"48-830-021-018-71-87030",15,"m","13 mm vastag 18 mm átm. csővezetékre",0,0,0,0]
[61,"48-830-021-022-71-87030",6,"m","22 mm átm. Csővezetékre ",0,0,0,0]
[62,"48-830-021-028-71-87030",3,"m","28 mm átm. csővezetékre",0,0,0,0]
[63,"48-830-021-035-71-87030",5,"m","35 mm átm. csővezetékre",0,0,0,0]
[64,"48-830-022-042-71-87030",2,"m","42 mm átm. csővezetékre",0,0,0,0]
[65,"54-321-010-090-06-31611",8,"m","Műanyag védőcső, horganyzott acélcső tüzivíz vezeték padlóban való átvezetéséhez, K-PVC anyagú, perforáció nélküli, bordás átm.  90 mm",0,0,{"$f":"(C67*F67)","v":0},{"$f":"(C67*G67)","v":0}]
[66,"K-tétel",6,"db","Csatlakozás a meglévő megmaradó hálózatra, hideg- és használati melegvíz vezetékekkel, előirányzat",0,0,0,0]
[67,"K-tétel",1,"db","szennyvíz vezetékkel, DN100",0,0,0,0]
[68,"33-630-002-025-40-10101",4,"db","Áttörés 0,10 m2/db méretig, helyreállítással, felmenő falban ",0,0,0,0]
[69,"K-tétel",1,"klt","Gipszkarton elburkolás készítése, tartószerkezettel, rögzítéssel, gletteléssel, festéssel, tervrajz szerinti hosszon és méretekkel, kompletten ",0,0,0,0]
[70,"K-tétel",1,"klt","Meglévő beton padlószerkezet felvágása és padlócsatorna készítése, helyreállítással előirányzat",0,0,0,0]
[71,"K-tétel",1,"klt","Falhorony készítése, csővezetékek részére, helyreállítással előirányzat ",0,0,0,0]
[72,"82-999-111-001",1,"db","Víz,- csatornaszerelési munkák próbái, vízvezetéki lefolyórendszer tömörségi próbája",0,0,0,0]
[73,"82-999-111-002",1,"db","vízvezetéki nyomórendszer nyomáspróbája",0,0,0,0]
[74,"82-999-111-004",1,"db","vezetékrendszer fertőtlenítése",0,0,0,0]
[75,"82-999-331-001",1,"db","vízhozam mérés",0,0,0,0]
[]
[{"$nulls":4},"Összesen:",null,null,{"$f":"SUM(H3:H77)","v":0},{"$f":"SUM(I3:I77)","v":0}]

{"sheet":"Hűtés szerelés","index":2,"n_rows":23,"n_cols":9,"rows_kept":23,"cut":false,"hidden":false,"merged":[]}
["No.","Azonosító","Mennyiség","Egys.","Szöveg","Óradij","Anyagár","xÓradij","xAnyagár"]
[{"$nulls":4},"Hűtés szerelés"]
[1,"83-611-002-200-58-11212",1,"db","Multi-split légkondicionáló berendezés, több beltéri és egy kültéri egységgel, gyári tartozékokkal, homlokzati falra történő rögzítséhez szükséges tartószerkezetekkel és rezgéscsillapító alátámasztásokkal felszerelve, (a faláttörés és helyreállítás, rézcső szerelés, gázzal való feltöltés, elektromos bekötés és beszabályozás költsége nélkül), LG gyátmányú, nagyteljesítményű multi készülék, inverteres hűtő-fűtő kivitelben. Kültéri egység, felszerelve MU3R21 típusú",0,0,{"$f":"(C3*F3)","v":0},{"$f":"(C3*G3)","v":0}]
[2,"83-611-002-200-58-11212",1,"db","MU5R40 típusú",0,0,0,0]
[3,"K-tétel",1,"db","Kültéri egységek homlokzati falra szereléséhez szükséges munkavégzés kosaras emelővel",0,0,0,0]
[4,"83-611-012-135-58-11201",1,"db","Oldalfali beltéri egység, felszerelve LG gyártmányú PC12SQ típusú      3,5 kW ",0,0,0,0]
[5,"83-611-042-124-56-41201",2,"db","Kazettás beltéri egység, dekor panellel, cseppvíz szivattyúval, mennyezetbe építve, felszerelve LG gyártmányú CT24 típusú",0,0,0,0]
[6,"K-tétel",2,"klt","Szervíz nyílás készítése padlásfödémben, mennyezetbe süllyesztett beltéri egység részére, szervíz ajtóval, padlás felöli szükséges hőszigeteléssel előirányzat",0,0,0,0]
[7,"83-669-101-007-21-11021",16.5,"m","Vörösrézcső vezeték hűtés és klímatechnikai célra, forrasztásos csőkötésekkel, szakaszos nyomáspróbával, szabadon, horonyba vagy padlócsatornába szerelve, (a szerelőkőműves munkák külön tételben történő elszámolásával), csőidomokkal és csőtartókkal együtt, tisztított kivitelben, lezárt csővégekkel, EN 12735-1 szerint, CU-DHP anyagminőségű, átm.  6,0 x 1,0 mm ",0,0,0,0]
[8,"83-669-101-010-21-11021",{"$f":"(61/4)*3","v":45.75},"m","átm. 10,0 x 1,0 mm ",0,0,0,0]
[9,"83-669-102-015-21-11021",28,"m","átm. 15,0 x 1,0 mm",0,0,0,0]
[10,"48-830-021-010-71-87030",16.5,"m","Épületgépészeti és ipari csővezeték szigetelése szintetikus gumi, szintetikus kaucsuk, polietilén vagy poliuretán anyagú csőhéjjal, teljes felületen ragasztva, KAIFLEX EF típusú, csőhéj, anyaga: szintetikus kaucsuk, szaniter, légtechnikai, klima és hűtési csővezetékre, 13 mm vastag 6 mm átm. csővezetékre ",0,0,0,0]
[11,"48-830-021-010-71-87040",45.75,"m","19 mm vastag 10 mm átm. Csővezetékre ",0,0,0,0]
[12,"48-830-021-015-71-87040",28,"m","15 mm átm. csővezetékre",0,0,0,0]
[13,"48-880-001-001-15-86030",26,"m","Hőszigetelt kültéri felületek burkolása félkemény AL 99.3 %-os alufóliával, a paláston alumínium ragasztószalag rögzítéssel, 100 mm k. átmérőig",0,0,0,0]
[14,"33-630-002-025-40-10101",2,"db","Áttörés helyreállítással, 0,10 m2/db méretig, felmenő falban",0,0,0,0]
[15,"33-630-017-025-40-10101",3,"db","födémben ",0,0,0,0]
[16,"83-991-011-002",1,"klt","Klíma rendszer szükség szerinti rátöltése, gyártói előírásnak megfelelő hűtőközeggel, előirányzat",0,0,0,0]
[17,"83-991-001-001",2,"db","Klíma hálózat és tartozékainak üzempróbái és beszabályozása, vezetékrendszer tömörségi és szivárgás vizsgálata",0,0,0,0]
[18,"83-991-001-003",2,"db","klíma központok üzempróbái és beszabályozása",0,0,0,0]
[19,"83-991-001-004",2,"db","a teljes klíma rendszer próbaüzeme",0,0,0,0]
[]
[{"$nulls":4},"Összesen:",null,null,{"$f":"SUM(H3:H21)","v":0},{"$f":"SUM(I3:I21)","v":0}]

{"sheet":"Légtechnika szerelés","index":3,"n_rows":30,"n_cols":9,"rows_kept":30,"cut":false,"hidden":false,"merged":[]}
["No.","Azonosító","Mennyiség","Egys.","Szöveg","Óradij","Anyagár","xÓradij","xAnyagár"]
[{"$nulls":4},"Légtechnika szerelés"]
[1,"83-521-211-004-39-11212",1,"db","Fali szellőztető ventilátor, falnyílásba építhető kivitelben, felszerelve, HELIOS M1 típusú, golyóscsapágyazással M1/150 N/C j.",0,0,{"$f":"(C3*F3)","v":0},{"$f":"(C3*G3)","v":0}]
[2,"83-252-221-016-39-91221",1,"db","Fali beépítő készlet, önműködő zárású lamellákkal, felszerelve, HELIOS WES típusú, WES 150 j.",0,0,0,0]
[3,"83-513-013-002-39-11554",0,"db","Ventilátorház, ventilátor gépegység elhelyezéséhez, felszerelve, HELIOS ELS típusú, ventilátor gépegységhez, falon kívüli szereléshez ELS-GAP j. (",0,0,0,0]
[4,"83-521-211-062-39-11551",0,"db","Ventilátor egység, elektromotorral egybeépítve, felszerelve, HELIOS ELS típusú, egycsöves szellőző rendszerbe ELS-VN  60       j. ",0,0,0,0]
[5,"83-221-151-016-39-91271",3,"db","Légbevezető készlet, falba építhető, szűrővel, 14 mm-es állandó távtartó gyűrűvel, felszerelve, HELIOS ZLAG típusú, ZLAG- 160 j.",0,0,0,0]
[6,"83-221-151-016-39-91271",0,"db","Légbevezető készlet, falba építhető, légmennyiség korlátozó elemmel, felszerelve, HELIOS GLV típusú, GLV- 160 j. ",0,0,0,0]
[7,"83-211-232-082-01-16112",0,"db","Ajtórács, átlátást megakadályozó rögzített betételemekkel, ajtó vagy épületszerkezet síkjára szerelhető kivitelben, felszerelve, Helios LTG típusú, ",0,0,0,0]
[8,"83-144-103-020-01-11831",0,"db","Tetőkivezető készlet, ferdetető átvezetővel, kivezetővel, felszerelve, Helios gyártmányú, DH 100 + UDP 100 ",0,0,0,0]
[9,"83-121-001-010-11-11001",0,"m","Kör keresztmetszetű spirálkorcolt merev lemezcső, horganyzott acélszalagból, külön tételben kiírt tartószerkezetre szerelve, LINDAB Safe SR típusú, merevítés nélkül NA  100  lv. 0,50 mm ",0,0,0,0]
[10,"83-121-002-015-11-11001",4,"m","NA  150  lv. 0,50 mm",0,0,0,0]
[11,"83-122-001-008-11-22011",0,"m","Kör keresztmetszetű hajlékony lemezcső, 0,2 mm vtg. alumíniumlemezből, külön tételben kiírt tartószerkezetre szerelve, LINDAB Safe FDO típusú, NA   80 ",0,0,0,0]
[12,"83-122-002-015-11-22011",1,"m","NA  150",0,0,0,0]
[13,"83-123-021-010-11-11111",0,"db","Csőkapcsoló idom, horganyzott acéllemezből,  U profilú EPDM gumiperem tömítéssel, a kötést megerősítő lemezcsavarokkal, külön tételben kíírt tartószerkezetre szerelve, LINDAB Safe NPU típusú, NA  100 ",0,0,0,0]
[14,"83-123-022-015-11-11121",2,"db","Idomkapcsoló, horganyzott acéllemezből, külön tételben kíírt tartószerkezetre szerelve, LINDAB Safe MF típusú, NA  150",0,0,0,0]
[15,"83-123-011-010-11-11141",0,"db","Végelzáróidom, horganyzott acéllemezből, a kötést megerősítő lemezcsavarokkal, külön tételben kiírt tartószerkezetre szerelve, LINDAB Safe EPF típusú, SAFE csatlakozóidomokra NA  100 ",0,0,0,0]
[16,"83-123-031-011-11-11312",0,"db","Elágazóidom, horganyzott acéllemezből, U profilú EPDM gumiperem tömítéssel, a kötést megerősítő lemezcsavarokkal, külön tételben kiírt tartószerkezetre szerelve, LINDAB SafeTCPU típusú, rápréselt nyeregidommal, vagy felső résszel, szűkített kivitelben NA  100/  80/ 100 ",0,0,0,0]
[17,"83-812-101-002-21-62131",0,"db","Légcsatornabilincs rögzített zajcsillapító gumibetéttel, mindkét oldalon csavaros rögzítéssel, menetes szárral, spirálkorcolt légcsatornák rögzítésére felszerelve, HILTI-MV-PI típusú, (DD 11 acél, galvanikus horganyzással, EPDM profilgumi) MV-PI NA  100   M 8               386481 ",0,0,0,0]
[18,"83-812-102-005-21-62131",2,"db","MV-PI NA  150   M 8               386484",0,0,0,0]
[19,"48-830-023-102-71-87060",0,"m","Épületgépészeti és ipari csővezeték szigetelése szintetikus gumi, szintetikus kaucsuk, polietilén vagy poliuretán anyagú csőhéjjal, teljes felületen ragasztva, KAIFLEX EF típusú, csőhéj, anyaga: szintetikus kaucsuk, szaniter, légtechnikai, klima és hűtési csővezetékre, 32 mm vastag 102 mm átm. csővezetékre ",0,0,0,0]
[20,"K-tétel",4,"db","Faláttörés készítése, szükséges helyreállítással, homlokzati falon DN150 cső részére ",0,0,0,0]
[21,"K-tétel",0,"db","válaszfalon DN80 cső részére ",0,0,0,0]
[22,"K-tétel",1,"db","DN150 cső részére",0,0,0,0]
[23,"K-tétel",0,"db","Födémáttörés készítése, szükséges helyreállítással, DN100 cső részére ",0,0,0,0]
[24,"K-tétel",1,"klt","Mennyezet alatti gipszkarton elburkolás készítése, tartószerkezettel, rögzítéssel, gletteléssel, festéssel, tervrajz szerinti hosszon és méretekkel, kompletten",0,0,0,0]
[25,"K-tétel",0,"db","Tetőhéjazaton áttörés készítése, szükséges helyreállítással, DN100 cső részére ",0,0,0,0]
[26,"83-991-001-003",1,"db","Légcsatorna hálózat és tartozékainak üzempróbái és beszabályozása, ventilátorok üzempróbái és beszabályozása ",0,0,0,0]
[]
[{"$nulls":4},"Összesen:",null,null,{"$f":"SUM(H3:H28)","v":0},{"$f":"SUM(I3:I28)","v":0}]